fUSD/lending_fUSD_20240429
["ID","MTS","AMOUNT","RATE_DAILY","PERIOD"]
[324834490,1714363834017,-764.93142913,0.00012986,2]
[324834491,1714363834027,-300.0,0.00012986,2]
[324834492,1714363834036,-329.63,0.00012986,2]
[324834493,1714363834046,-302.34,0.00012986,2]
[324834494,1714363834055,-419.34,0.00012986,2]
[324834495,1714363834065,-500.0,0.00012987,2]
[324834496,1714363834075,-489.03101071,0.00012987,2]
[324834497,1714363834084,-500.0,0.00012987,2]
[324834498,1714363834094,-500.0,0.00012987,2]
[324834499,1714363834104,-562.65701521,0.00012987,2]
[324834500,1714363834114,-237.43960315,0.00012987,2]
[324834501,1714363834124,-514.42670347,0.00012987,2]
[324834502,1714363834133,-500.0,0.00012987,2]
[324834503,1714363834142,-500.0,0.00012987,2]
[324834504,1714363834152,-500.0,0.00012987,2]
[324834505,1714363834161,-192.87547843,0.00012987,2]
[324834506,1714363834172,-500.0,0.00012987,2]
[324834507,1714363834181,-500.0,0.00012987,2]
[324834508,1714363834191,-618.03,0.00012987,2]
[324834509,1714363834201,-274.51947218,0.00012987,2]
[324834510,1714363834210,-500.0,0.00012987,2]
[324834511,1714363834219,-531.52,0.00012987,2]
[324834512,1714363834229,-500.0,0.00012987,2]
[324834513,1714363834238,-500.0,0.00012987,2]
[324834514,1714363834247,-588.36,0.00012987,2]
[324834515,1714363834256,-500.0,0.00012987,2]
[324834516,1714363834266,-500.0,0.00012987,2]
[324834517,1714363834275,-509.68,0.00012987,2]
[324834518,1714363834284,-500.0,0.00012987,2]
[324834519,1714363834294,-500.0,0.00012987,2]
[324834520,1714363834303,-624.15,0.00012987,2]
[324834521,1714363834313,-500.0,0.00012987,2]
[324834522,1714363834322,-500.0,0.00012987,2]
[324834523,1714363834331,-500.0,0.00012987,2]
[324834524,1714363834341,-923.87,0.00012987,2]
[324834525,1714363834350,-217.12827354,0.00012987,2]
[324834526,1714363834360,-552.22,0.00012987,2]
[324834527,1714363834370,-863.67,0.00012987,2]
[324834528,1714363834378,-500.0,0.00012987,2]
[324834529,1714363834387,-2168.02,0.00012987,2]
[324834530,1714363834396,-500.0,0.00012987,2]
[324834531,1714363834406,-150.58,0.00012987,2]
[324834532,1714363834415,-870.19,0.00012987,2]
[324834533,1714363834424,-500.0,0.00012987,2]
[324834534,1714363834434,-500.0,0.00012987,2]
[324834535,1714363834443,-499.1697286,0.00012987,2]
[324834536,1714363834452,-151.0,0.00012987,2]
[324834537,1714363834462,-158.189168,0.00012987,2]
[324834538,1714363834474,-151.0,0.00012987,2]
[324834539,1714363834483,-528.57479126,0.00012987,2]
[324834540,1714363834492,-877.17529427,0.00012988,2]
[324834541,1714363834502,-488.52576996,0.00012988,2]
[324834542,1714363834511,-199.85948,0.00012988,2]
[324834543,1714363834522,-121.57236098,0.00012988,2]
[324834544,1714363834535,-36.30473462,0.00012988,2]
[324834545,1714363834544,-683.96113765,0.00012988,2]
[324834546,1714363834556,-300.40599787,0.00012988,2]
[324834547,1714363834568,-273.80565489,0.00012988,2]
[324834578,1714363838260,-6231.6,0.00012327,2]
[324834585,1714363838318,-3768.4,0.00012327,2]
[324834587,1714363838328,-500.0,0.00012892,2]
[324834589,1714363838337,-500.0,0.00012892,2]
[324834591,1714363838347,-929.21847942,0.00012988,2]
[324834593,1714363838358,-416.35908016,0.00012988,2]
[324834595,1714363838367,-1041.81482818,0.00012988,2]
[324834596,1714363838376,-500.0,0.00012988,2]
[324834597,1714363838386,-761.66,0.00012988,2]
[324834598,1714363838396,-500.0,0.00012988,2]
[324834599,1714363838406,-500.0,0.00012988,2]
[324834600,1714363838415,-500.0,0.00012988,2]
[324834601,1714363838424,-500.0,0.00012988,2]
[324834602,1714363838434,-151.0,0.00012988,2]
[324834603,1714363838443,-1201.96,0.00012988,2]
[324834604,1714363838452,-543.83,0.00012988,2]
[324834605,1714363838462,-500.0,0.00012988,2]
[324834606,1714363838473,-151.0,0.00012988,2]
[324834607,1714363838484,-242.222808,0.00012988,2]
[324834608,1714363838494,-500.0,0.00012988,2]
[324834610,1714363838503,-500.0,0.00012988,2]
[324834612,1714363838512,-500.0,0.00012988,2]
[324834614,1714363838523,-500.0,0.00012988,2]
[324834616,1714363838532,-500.0,0.00012988,2]
[324834618,1714363838542,-500.0,0.00012988,2]
[324834619,1714363838553,-151.0,0.00012988,2]
[324834622,1714363838562,-1053.35,0.00012988,2]
[324834624,1714363838572,-500.0,0.00012988,2]
[324834626,1714363838582,-1011.83,0.00012988,2]
[324834628,1714363838591,-1647.79,0.00012988,2]
[324834630,1714363838602,-844.82,0.00012988,2]
[324834631,1714363838611,-500.0,0.00012988,2]
[324834633,1714363838619,-638.19,0.00012988,2]
[324834635,1714363838628,-500.0,0.00012988,2]
[324834637,1714363838638,-500.0,0.00012988,2]
[324834638,1714363838648,-697.12,0.00012988,2]
[324834640,1714363838657,-500.0,0.00012988,2]
[324834641,1714363838666,-500.0,0.00012988,2]
[324834642,1714363838676,-809.89,0.00012988,2]
[324834643,1714363838685,-500.0,0.00012988,2]
[324834644,1714363838694,-545.36206973,0.00012988,2]
[324834645,1714363838706,-654.21511587,0.00012988,2]
[324834646,1714363838718,-580.4,0.00012988,2]
[324834647,1714363838730,-574.37999999,0.00012988,2]
[324834648,1714363838750,-341.11281441,0.00012988,2]
[324834649,1714363838760,-2013.21,0.00012988,2]
[324834650,1714363838769,-248.78362234,0.00012988,2]
[324834651,1714363838789,-251.21637766,0.00012988,2]
[324834652,1714363838798,-500.0,0.00012988,2]
[324834653,1714363838807,-151.0,0.00012988,2]
[324834654,1714363838817,-500.0,0.00012989,2]
[324834655,1714363838826,-78.51175562,0.00012989,2]
[324834656,1714363838838,-421.48824438,0.00012989,2]
[324834657,1714363838847,-500.0,0.00012989,2]
[324834658,1714363838859,-240.10979279,0.00012989,2]
[324834659,1714363838867,-313.89586528,0.00012989,2]
[324834660,1714363838876,-500.0,0.00012989,2]
[324834661,1714363838886,-197.66,0.00012989,2]
[324834662,1714363838895,-500.0,0.00012989,2]
[324834663,1714363838905,-583.3,0.00012989,2]
[324834664,1714363838914,-19.34962755,0.00012989,2]
[324834687,1714363841977,-729.93,0.00012892,2]
[324834688,1714363841987,-193.602062,0.00012988,2]
[324834689,1714363841996,-500.0,0.00012988,2]
[324834690,1714363842005,-480.65037245,0.00012989,2]
[324834691,1714363842015,-500.0,0.00012989,2]
[324834692,1714363842024,-298.51756587,0.00012989,2]
[324834693,1714363842037,-272.89620515,0.00012989,2]
[324834694,1714363842046,-500.0,0.00012989,2]
[324834695,1714363842055,-556.94441016,0.00012989,2]
[324834696,1714363842065,-500.0,0.00012989,2]
[324834697,1714363842075,-392.9299891,0.00012989,2]
[324834698,1714363842084,-500.0,0.00012989,2]
[324834699,1714363842093,-500.0,0.00012989,2]
[324834700,1714363842102,-437.7066534,0.00012989,2]
[324834701,1714363842112,-572.98,0.00012989,2]
[324834702,1714363842122,-500.0,0.00012989,2]
[324834703,1714363842131,-455.06,0.00012989,2]
[324834704,1714363842141,-500.0,0.00012989,2]
[324834705,1714363842150,-500.0,0.00012989,2]
[324834706,1714363842160,-49.78274219,0.00012989,2]
[324834707,1714363842184,-450.21725781,0.00012989,2]
[324834708,1714363842193,-433.09,0.00012989,2]
[324834709,1714363842202,-500.0,0.00012989,2]
[324834710,1714363842212,-385.97,0.00012989,2]
[324834711,1714363842221,-383.941427,0.00012989,2]
[324834712,1714363842230,-150.34662637,0.00012989,2]
[324834713,1714363842239,-539.95343065,0.00012989,2]
[324834714,1714363842249,-500.0,0.00012989,2]
[324834715,1714363842259,-225.12558581,0.00012989,2]
[324834716,1714363842268,-500.0,0.00012989,2]
[324834717,1714363842277,-500.0,0.00012989,2]
[324834718,1714363842286,-597.59623243,0.00012989,2]
[324834719,1714363842296,-500.0,0.00012989,2]
[324834720,1714363842305,-482.07482401,0.00012989,2]
[324834721,1714363842314,-500.0,0.00012989,2]
[324834722,1714363842323,-500.0,0.00012989,2]
[324834723,1714363842332,-500.0,0.00012989,2]
[324834724,1714363842342,-150.0,0.00012989,2]
[324834725,1714363842351,-346.33554619,0.00012989,2]
[324834726,1714363842362,-283.63200364,0.00012989,2]
[324834727,1714363842371,-500.0,0.00012989,2]
[324834728,1714363842380,-6.04177605,0.00012989,2]
[324834729,1714363842395,-312.5,0.00012989,2]
[324834730,1714363842406,-181.45822395,0.00012989,2]
[324834731,1714363842415,-94.49246105,0.00012989,2]
[324834734,1714363842438,-405.50753895,0.00012989,2]
[324834736,1714363842448,-500.0,0.00012989,2]
[324834738,1714363842456,-402.64381696,0.00012989,2]
[324834740,1714363842466,-500.0,0.00012989,2]
[324834742,1714363842480,-500.0,0.00012989,2]
[324834744,1714363842489,-500.0,0.00012989,2]
[324834746,1714363842499,-500.0,0.00012989,2]
[324834748,1714363842508,-500.0,0.00012989,2]
[324834750,1714363842519,-500.0,0.00012989,2]
[324834752,1714363842528,-500.0,0.00012989,2]
[324834754,1714363842537,-500.0,0.00012989,2]
[324834756,1714363842547,-500.0,0.00012989,2]
[324834758,1714363842556,-269.53382139,0.00012989,2]
[324834760,1714363842566,-591.97266505,0.00012989,2]
[324834762,1714363842575,-500.0,0.00012989,2]
[324834764,1714363842584,-474.59230149,0.00012989,2]
[324834766,1714363842593,-500.0,0.00012989,2]
[324834768,1714363842602,-513.82,0.00012989,2]
[324834770,1714363842612,-500.0,0.00012989,2]
[324834772,1714363842621,-500.0,0.00012989,2]
[324834774,1714363842630,-500.0,0.00012989,2]
[324834776,1714363842639,-500.0,0.00012989,2]
[324834778,1714363842649,-500.0,0.00012989,2]
[324834780,1714363842658,-506.98798403,0.00012989,2]
[324834781,1714363842668,-500.0,0.00012989,2]
[324834783,1714363842678,-304.94187214,0.00012989,2]
[324834805,1714363842863,-195.05812786,0.00012989,2]
[324834807,1714363842874,-500.0,0.00012989,2]
[324834809,1714363842883,-515.55,0.00012989,2]
[324834812,1714363842893,-500.0,0.00012989,2]
[324834814,1714363842902,-500.0,0.00012989,2]
[324834816,1714363842911,-762.8,0.00012989,2]
[324834819,1714363842921,-366.47131123,0.00012989,2]
[324834822,1714363842937,-133.52868877,0.00012989,2]
[324834824,1714363842947,-6566.01,0.00012989,2]
[324834826,1714363842956,-151.0,0.00012989,2]
[324834828,1714363842965,-151.0,0.00012989,2]
[324834831,1714363842974,-500.0,0.00012989,2]
[324834833,1714363842983,-500.0,0.00012989,2]
[324834835,1714363842992,-500.0,0.00012989,2]
[324834837,1714363843001,-1593.14,0.00012989,2]
[324834839,1714363843011,-500.0,0.00012989,2]
[324834841,1714363843020,-500.0,0.00012989,2]
[324834843,1714363843029,-500.0,0.00012989,2]
[324834845,1714363843038,-500.0,0.00012989,2]
[324834847,1714363843047,-500.0,0.00012989,2]
[324834849,1714363843056,-258.981999,0.00012989,2]
[324834851,1714363843065,-591.30971861,0.00012989,2]
[324834855,1714363843093,-370.7930817,0.00012989,2]
[324834858,1714363843105,-814.85277946,0.00012989,2]
[324834865,1714363843146,-450.63442023,0.00012989,2]
[324834868,1714363843156,-151.0,0.00012989,2]
[324834870,1714363843165,-50.49987635,0.00012989,2]
[324834872,1714363843177,-449.50012365,0.00012989,2]
[324834875,1714363843186,-151.0,0.00012989,2]
[324834877,1714363843195,-500.0,0.00012989,2]
[324834880,1714363843204,-500.0,0.00012989,2]
[324834881,1714363843213,-500.0,0.00012989,2]
[324834883,1714363843222,-212.02465746,0.00012989,2]
[324834886,1714363843233,-287.97534254,0.00012989,2]
[324834888,1714363843242,-500.0,0.00012989,2]
[324834890,1714363843251,-532.49700586,0.00012989,2]
[324834891,1714363843260,-500.0,0.00012989,2]
[324834892,1714363843269,-500.0,0.00012989,2]
[324834893,1714363843278,-95.6049516,0.00012989,2]
[324834907,1714363843479,-263.59582938,0.00012989,2]
[324834919,1714363843582,-157.50921902,0.00012989,2]
[324834921,1714363843591,-500.0,0.00012989,2]
[324834923,1714363843600,-500.0,0.00012989,2]
[324834925,1714363843609,-500.0,0.00012989,2]
[324834927,1714363843618,-544.2,0.00012989,2]
[324834929,1714363843627,-500.0,0.00012989,2]
[324834931,1714363843636,-500.0,0.00012989,2]
[324834933,1714363843644,-500.0,0.00012989,2]
[324834935,1714363843654,-6.58385778,0.00012989,2]
[324834937,1714363843665,-313.65038709,0.00012989,2]
[324834939,1714363843677,-179.76575513,0.00012989,2]
[324834941,1714363843686,-500.0,0.00012989,2]
[324834943,1714363843694,-638.93,0.00012989,2]
[324834945,1714363843703,-583.29,0.00012989,2]
[324834947,1714363843712,-500.0,0.00012989,2]
[324834949,1714363843722,-500.0,0.00012989,2]
[324834951,1714363843732,-500.0,0.00012989,2]
[324834953,1714363843741,-594.78,0.00012989,2]
[324834955,1714363843750,-42.77424487,0.00012989,2]
[324834958,1714363843770,-1956.15575513,0.00012989,2]
[324834960,1714363843779,-708.99534153,0.00012989,2]
[324834963,1714363843788,-1088.0,0.0001299,2]
[324834965,1714363843797,-3712.34041061,0.0001299,2]
[324834968,1714363843816,-976.920342,0.0001299,2]
[324834971,1714363843828,-383.48999995,0.0001299,2]
[324834974,1714363843840,-863.04239845,0.0001299,2]
[324834976,1714363843851,-1487.23232148,0.0001299,2]
[324834978,1714363843863,-547.46957672,0.0001299,2]
[324834980,1714363843874,-3800.05971088,0.0001299,2]
[324834983,1714363843893,-13367.61577987,0.0001299,2]
[324834985,1714363843904,-6748.22690148,0.0001299,2]
[324834988,1714363843915,-141531.11746117,0.0001299,2]
[324835119,1714363846175,-155.0,0.00012987,2]
[324835121,1714363846184,-3476.35742864,0.00012987,2]
[324835123,1714363846193,-909.41523823,0.0001299,2]
[324835125,1714363846206,-546.49192064,0.0001299,2]
[324835127,1714363846217,-251.83503424,0.0001299,2]
[324835130,1714363846229,-1560.275,0.0001299,2]
[324835135,1714363846267,-1426.04773186,0.0001299,2]
[324835137,1714363846278,-31935.67182554,0.0001299,2]
[324835143,1714363846327,-7148.8,0.0001299,2]
[324835145,1714363846338,-602.34,0.0001299,2]
[324835800,1714363999185,358.07,0.00010091,2]
[324835801,1714364026650,1050.0,0.00012,2]
[324835803,1714364037141,335.20775588,0.00010091,4]
[324835804,1714364038214,155.0,0.00010091,2]
[324835805,1714364039405,399.48907395,0.00010091,2]
[324835806,1714364041504,1167.39,0.0001197,2]
[324835807,1714364048484,298.84757904,0.00010091,2]
[324835808,1714364051149,421.20148745,0.00010091,4]
[324835809,1714364052408,155.0,0.00010091,2]
[324835810,1714364053451,547.10066299,0.00010091,2]
[324835811,1714364055255,440.04621412,0.00010091,2]
[324835812,1714364060987,299.33345953,0.00010091,2]
[324835813,1714364067533,547.10066299,0.00010091,2]
[324835814,1714364068223,251.76218263,0.00010091,2]
[324835815,1714364090286,547.10066299,0.00010091,2]
[324835816,1714364105488,547.10066299,0.00010091,2]
[324835817,1714364121459,547.10066299,0.00010091,2]
[324835818,1714364139457,371.27167057,0.00010091,2]
[324835819,1714364233556,19687.30218531,0.00010091,2]
[324835820,1714364253508,14698.39878246,0.00010091,2]
[324835821,1714364325595,187.71,0.00011852,2]
[324835822,1714364390135,6988.46629411,0.00011843,2]
[324835883,1714365031808,-427.4264081,0.0001,2]
[324835884,1714365031817,-94.9033583,0.00011,2]
[324835885,1714365031833,-105.0966417,0.00011,2]
[324835886,1714365031842,-269.92012244,0.00011719,2]
[324835887,1714365031853,-507.65987756,0.00011719,2]
[324835888,1714365031862,-102.02012242,0.00011729,2]
[324835889,1714365031915,-47.97987758,0.00011729,2]
[324835890,1714365031925,-23900.0,0.0001173,2]
[324835891,1714365031934,-867.56,0.00011741,2]
[324835892,1714365031943,-187.18,0.00011767,2]
[324835893,1714365031952,-150.0,0.000118,2]
[324835894,1714365031962,-1141.1,0.00011802,2]
[324835895,1714365031971,-533.21414659,0.00011836,2]
[324836161,1714365037432,-8578.81084641,0.00011836,2]
[324836162,1714365037442,-419.36,0.00011836,2]
[324836163,1714365037452,-10464.92,0.00012057,2]
[324836164,1714365037461,-8804.2,0.00012057,2]
[324836165,1714365037470,-522.29,0.000121,2]
[324836166,1714365037480,-423.74,0.000121,2]
[324836167,1714365037489,-419.34,0.000122,2]
[324836168,1714365037498,-522.29,0.000122,2]
[324836169,1714365037507,-637.08,0.00012278,2]
[324836170,1714365037516,-151.48,0.00012278,2]
[324836171,1714365037525,-419.34,0.000123,2]
[324836172,1714365037534,-10000.0,0.00012327,2]
[324836173,1714365037543,-2013.62,0.0001241,2]
[324836174,1714365037551,-150.0,0.0001241,3]
[324836175,1714365037560,-20.60535676,0.000125,2]
[324836176,1714365037584,-507.36464324,0.000125,2]
[324836177,1714365037594,-837.82,0.000125,2]
[324836178,1714365037604,-522.29,0.000125,2]
[324836179,1714365037613,-0.07199111,0.000125,2]
[324836180,1714365037687,-292.82652537,0.000125,2]
[324836181,1714365037697,-270.09148352,0.000125,2]
[324836182,1714365037707,-531.07,0.000125,2]
[324836183,1714365037716,-838.22,0.000125,2]
[324836184,1714365037725,-1499.53,0.000125,2]
[324836185,1714365037734,-306.91,0.000125,2]
[324836186,1714365037743,-162.94,0.000125,2]
[324836187,1714365037752,-151.4,0.000125,2]
[324836188,1714365037761,-150.0,0.000125,2]
[324836189,1714365037770,-215.60139981,0.000125,2]
[324836232,1714365039724,-340.16,9.869e-05,2]
[324836233,1714365039734,-218.22055108,0.00012133,2]
[324836234,1714365039745,-121.93944892,0.00012133,2]
[324836235,1714365039755,-520.46244658,0.00012327,2]
[324836236,1714365039766,-360.4378311,0.00012327,2]
[324836237,1714365039777,-320.205,0.00012327,2]
[324836238,1714365039788,-2020.62785488,0.00012327,2]
[324836239,1714365039867,-754.88860419,0.00012327,2]
[324836240,1714365039933,-2875.77289994,0.00012327,2]
[324836241,1714365039945,-3147.60536331,0.00012327,2]
[324836242,1714365039954,-714.05860019,0.000125,2]
[324836243,1714365039963,-414.11,0.000125,2]
[324836244,1714365039973,-162.94,0.000125,2]
[324836245,1714365039982,-150.0,0.000125,2]
[324836246,1714365039992,-414.11,0.000125,2]
[324836247,1714365040004,-150.0,0.00012627,2]
[324836248,1714365040014,-150.0,0.0001263,2]
[324836249,1714365040023,-150.0,0.00012637,2]
[324836250,1714365040032,-150.0,0.00012642,2]
[324836251,1714365040042,-170.02440785,0.00012644,2]
[324836252,1714365040051,-150.0,0.00012656,2]
[324836253,1714365040061,-150.0,0.00012658,2]
[324836255,1714365040070,-150.0,0.0001267,2]
[324836256,1714365040080,-150.0,0.00012672,2]
[324836257,1714365040089,-150.0,0.00012674,2]
[324836258,1714365040099,-150.0,0.00012675,2]
[324836259,1714365040108,-150.0,0.00012681,2]
[324836260,1714365040117,-150.0,0.00012684,2]
[324836261,1714365040127,-150.0,0.00012684,2]
[324836262,1714365040136,-150.0,0.00012691,2]
[324836263,1714365040145,-150.0,0.00012692,2]
[324836264,1714365040154,-155.0,0.000127,2]
[324836265,1714365040164,-150.0,0.00012701,2]
[324836266,1714365040173,-150.0,0.00012703,2]
[324836267,1714365040182,-150.0,0.00012704,2]
[324836268,1714365040192,-150.0,0.00012712,2]
[324836269,1714365040201,-150.0,0.00012719,2]
[324836270,1714365040210,-150.0,0.00012726,2]
[324836271,1714365040220,-153.46562657,0.00012734,2]
[324836272,1714365040229,-150.0,0.00012735,2]
[324836273,1714365040238,-150.0,0.00012738,2]
[324836274,1714365040247,-150.0,0.00012751,2]
[324836275,1714365040256,-150.0,0.00012753,2]
[324836276,1714365040266,-150.0,0.00012754,2]
[324836277,1714365040275,-150.0,0.0001276,2]
[324836278,1714365040283,-150.0,0.00012765,2]
[324836279,1714365040292,-150.0,0.00012767,2]
[324836280,1714365040301,-150.0,0.00012767,2]
[324836281,1714365040311,-150.0,0.00012771,2]
[324836282,1714365040320,-150.0,0.00012772,2]
[324836283,1714365040331,-150.0,0.00012772,2]
[324836284,1714365040339,-150.0,0.00012776,2]
[324836285,1714365040348,-150.0,0.0001278,2]
[324836286,1714365040358,-150.0,0.00012783,2]
[324836287,1714365040367,-150.0,0.00012784,2]
[324836288,1714365040376,-38618.2152,0.0001279,2]
[324836289,1714365040385,-10478.045,0.0001279,2]
[324836290,1714365040395,-150.0,0.00012795,2]
[324836291,1714365040405,-150.0,0.00012799,2]
[324836292,1714365040414,-7500.0,0.000128,2]
[324836293,1714365040424,-1004.0,0.000128,2]
[324836294,1714365040433,-150.0,0.00012803,2]
[324836295,1714365040443,-150.0,0.00012804,2]
[324836296,1714365040455,-150.0,0.00012814,2]
[324836297,1714365040464,-150.0,0.00012816,2]
[324836298,1714365040474,-150.0,0.00012821,2]
[324836299,1714365040484,-150.0,0.00012829,2]
[324836300,1714365040493,-150.0,0.0001283,2]
[324836301,1714365040503,-150.0,0.00012835,2]
[324836302,1714365040512,-150.0,0.00012836,2]
[324836303,1714365040522,-150.0,0.00012837,2]
[324836304,1714365040531,-150.0,0.00012838,2]
[324836305,1714365040540,-150.0,0.00012845,2]
[324836306,1714365040567,-150.0,0.00012846,2]
[324836307,1714365040585,-150.0,0.00012848,2]
[324836308,1714365040594,-150.0,0.00012852,2]
[324836309,1714365040603,-150.0,0.00012854,2]
[324836310,1714365040612,-150.0,0.00012859,2]
[324836311,1714365040622,-246.58960536,0.00012861,2]
[324836312,1714365040631,-150.0,0.00012861,2]
[324836313,1714365040639,-150.0,0.00012864,2]
[324836314,1714365040649,-1515.42829408,0.00012867,2]
[324836315,1714365040658,-150.0,0.00012872,2]
[324836316,1714365040667,-150.0,0.00012872,2]
[324836317,1714365040676,-1000.0,0.00012886,2]
[324836318,1714365040685,-500.0,0.00012886,2]
[324836319,1714365040694,-199.00022202,0.0001289,2]
[324836320,1714365040703,-174.23661627,0.0001289,2]
[324836321,1714365040713,-169.91153449,0.0001289,2]
[324836322,1714365040722,-150.0,0.0001289,2]
[324836323,1714365040731,-480.23702652,0.0001289,2]
[324836324,1714365040740,-190.39113468,0.0001289,2]
[324836325,1714365040750,-480.23702642,0.00012891,2]
[324836326,1714365040759,-480.23702642,0.00012892,2]
[324836327,1714365040768,-500.0,0.00012892,2]
[324836328,1714365040778,-500.0,0.00012892,2]
[324836329,1714365040787,-389.29,0.00012892,2]
[324836330,1714365040797,-500.0,0.00012892,2]
[324836331,1714365040811,-500.0,0.00012892,2]
[324836332,1714365040820,-480.23702642,0.00012893,2]
[324836333,1714365040836,-150.0,0.00012893,2]
[324836334,1714365040845,-480.23702642,0.00012894,2]
[324836335,1714365040854,-150.0,0.00012894,2]
[324836336,1714365040863,-480.23702642,0.00012895,2]
[324836337,1714365040874,-480.23702642,0.00012895,2]
[324836338,1714365040883,-480.23702642,0.00012896,2]
[324836339,1714365040892,-480.23702642,0.00012897,2]
[324836340,1714365040900,-150.0,0.00012898,2]
[324836341,1714365040912,-480.23702642,0.00012898,2]
[324836342,1714365040922,-500.0,0.00012899,2]
[324836343,1714365040935,-500.0,0.00012899,2]
[324836344,1714365040944,-951.49,0.00012899,2]
[324836345,1714365040954,-500.0,0.00012899,2]
[324836346,1714365040963,-615.85,0.00012899,2]
[324836347,1714365040972,-500.0,0.00012899,2]
[324836348,1714365040981,-500.0,0.00012899,2]
[324836349,1714365040990,-500.0,0.00012899,2]
[324836350,1714365041000,-500.0,0.00012899,2]
[324836351,1714365041010,-500.0,0.00012899,2]
[324836352,1714365041019,-500.0,0.00012899,2]
[324836353,1714365041028,-500.0,0.00012899,2]
[324836354,1714365041037,-500.0,0.00012899,2]
[324836355,1714365041046,-946.04,0.00012899,2]
[324836356,1714365041272,-500.0,0.00012899,2]
[324836357,1714365041281,-508.68,0.00012899,2]
[324836358,1714365041290,-941.05,0.00012899,2]
[324836359,1714365041299,-834.52,0.00012899,2]
[324836360,1714365041308,-500.0,0.00012899,2]
[324836361,1714365041317,-500.0,0.00012899,2]
[324836362,1714365041326,-500.0,0.00012899,2]
[324836363,1714365041338,-789.66,0.00012899,2]
[324836364,1714365041346,-500.0,0.00012899,2]
[324836365,1714365041356,-500.0,0.00012899,2]
[324836366,1714365041365,-541.70855178,0.00012899,2]
[324836367,1714365041374,-500.0,0.00012899,2]
[324836368,1714365041383,-500.0,0.00012899,2]
[324836369,1714365041392,-244.11,0.00012899,2]
[324836370,1714365041402,-500.0,0.00012899,2]
[324836371,1714365041411,-500.0,0.00012899,2]
[324836372,1714365041420,-500.0,0.00012899,2]
[324836373,1714365041429,-4574.68,0.00012899,2]
[324836374,1714365041438,-641.21,0.00012899,2]
[324836375,1714365041447,-500.0,0.00012899,2]
[324836376,1714365041456,-500.0,0.00012899,2]
[324836377,1714365041465,-500.0,0.00012899,2]
[324836378,1714365041474,-480.23702642,0.00012899,2]
[324836379,1714365041483,-459081.347765,0.000129,2]
[324836380,1714365041492,-1041.7727,0.000129,2]
[324836381,1714365041501,-1000.0,0.000129,2]
[324836382,1714365041510,-480.23702642,0.000129,2]
[324836383,1714365041519,-150.0,0.00012901,2]
[324836384,1714365041528,-150.0,0.00012901,2]
[324836385,1714365041537,-205.0,0.00012901,2]
[324836386,1714365041546,-150.0,0.00012905,2]
[324836387,1714365041555,-150.0,0.0001293,2]
[324836388,1714365041564,-151.30585427,0.00012947,2]
[324836389,1714365041573,-441.211,0.00012973,2]
[324836390,1714365041586,-1867.376,0.00012973,2]
[324836391,1714365041596,-1483.097,0.00012973,2]
[324836392,1714365041605,-151.013,0.00012973,2]
[324836393,1714365041614,-3143.267,0.00012973,2]
[324836394,1714365041622,-421.532,0.00012973,2]
[324836395,1714365041632,-2456.57,0.00012973,2]
[324836396,1714365041641,-1647.783,0.00012973,2]